bitfinex-derivatives/quotes_SOLF0:USTF0_20250212
["timestamp","ask_amount","ask_price","bid_price","bid_amount"]
[1739373123120,42.54114159,190.73,190.62,2.9854]
[1739373123321,42.54114159,190.76,190.62,2.9854]
[1739373123621,42.54114159,190.73,190.67,0.03769473]
[1739373123822,0.03879962,190.71,190.67,0.03769473]
[1739373124718,0.03879962,190.71,190.7,5.2441]
[1739373125119,9.962e-05,190.71,190.7,5.2441]
[1739373126416,9.962e-05,190.71,190.67,0.03769473]
[1739373126623,9.962e-05,190.71,190.68,5.2444]
[1739373126923,9.962e-05,190.71,190.67,0.03769473]
[1739373127517,5.2446,190.68,190.61,5.2464]
[1739373127720,42.54114159,190.7,190.61,5.2464]
[1739373128522,42.54114159,190.7,190.55,42.54114159]
[1739373128718,42.54114159,190.73,190.55,42.54114159]
[1739373128919,0.03771115,190.67,190.64,0.0375141]
[1739373129424,42.54114159,190.7,190.64,0.0375141]
[1739373129717,42.57948189,190.67,190.43,42.54114159]
[1739373129921,42.57948189,190.67,190.33,103.86]
[1739373129922,42.54114159,190.58,190.49,5.2498]
[1739373130120,42.54114159,190.55,190.49,5.2498]
[1739373130322,42.54114159,190.55,190.4,42.54114159]
[1739373130724,0.03657529,190.49,190.47,5.2503]
[1739373131029,42.54114159,190.55,190.47,5.2503]
[1739373131226,2.8779,190.56,190.46,0.03374636]
[1739373131421,0.03870009,190.5,190.46,0.03374636]
[1739373131822,9e-08,190.5,190.49,5.2498]
[1739373132322,9e-08,190.5,190.49,47.79094159]
[1739373133428,42.54114159,190.67,190.49,42.54114159]
[1739373133623,5.2452,190.66,190.58,5.2472]
[1739373134127,2.8304,190.68,190.62,5.2461]
[1739373134326,2.8304,190.68,190.55,42.54114159]
[1739373134523,42.54114159,190.67,190.52,42.54114159]
[1739373134728,0.03519664,190.63,190.6,0.03839745]
[1739373134929,45.56854159,190.67,190.52,42.54114159]
[1739373135221,45.56854159,190.67,190.62,5.2463]
[1739373135222,0.0386268,190.63,190.62,5.2463]
[1739373135426,2.68e-05,190.63,190.62,5.2463]
[1739373136128,86.0454969,190.73,190.61,45.60754159]
[1739373136323,86.0454969,190.71,190.65,42.54114159]
[1739373136917,86.0454969,190.71,190.7,5.2441]
[1739373137523,86.0454969,190.71,190.69,0.03988038]
[1739373138026,86.0454969,190.71,190.64,5.2454]
[1739373138224,86.0454969,190.71,190.56,42.54114159]
[1739373138424,86.0454969,190.71,190.59,42.54114159]
[1739373138826,86.0454969,190.71,190.67,5.2446]
[1739373139029,42.54114159,190.82,190.66,42.54114159]
[1739373139230,0.03407188,190.71,190.67,0.0402199]
[1739373139428,47.78364159,190.76,190.69,5.2442]
[1739373139628,0.03866217,190.71,190.67,0.03527735]
[1739373139828,2.8209,190.79,190.65,42.54114159]
[1739373140025,0.03563049,190.71,190.67,0.03936992]
[1739373140233,45.36204159,190.79,190.62,42.54114159]
[1739373140430,0.03618337,190.71,190.67,0.03853183]
[1739373140730,45.36204159,190.79,190.71,5.2436]
[1739373140731,5.2422,190.77,190.71,5.2436]
[1739373140932,45.36204159,190.79,190.67,0.03937862]
[1739373141128,42.5753406,190.76,190.62,42.54114159]
[1739373141327,42.54114159,190.76,190.71,0.03465344]
[1739373141528,0.03435387,190.71,190.67,5.2446]
[1739373141730,42.54114159,190.76,190.67,5.2446]
[1739373141926,0.03834338,190.71,190.67,0.0335529]
[1739373142134,45.36204159,190.79,190.62,42.54114159]
[1739373142428,0.03505276,190.71,190.67,0.04018714]
[1739373142640,42.54114159,190.76,190.59,42.54114159]
[1739373142933,0.04036523,190.71,190.67,0.03414233]
[1739373143233,42.54114159,190.7,190.5,10.4991]
[1739373143636,5.2443,190.7,190.64,5.2456]
[1739373143827,5.9159,190.72,190.64,5.2456]
[1739373144029,5.9159,190.72,190.5,10.4991]
[1739373144231,0.03972835,190.7,190.66,0.03618773]
[1739373144635,5.9159,190.72,190.58,42.54114159]
[1739373144836,5.27933308,190.7,190.66,0.0391717]
[1739373145032,0.03523308,190.7,190.66,0.0391717]
[1739373145433,0.03523308,190.7,190.69,5.2443]
[1739373145738,3.308e-05,190.7,190.69,5.2443]
[1739373146838,57.86981068,190.74,190.67,42.54114159]
[1739373147039,57.86981068,190.74,190.73,5.2432]
[1739373148232,57.86981068,190.74,190.72,0.04033568]
[1739373148634,57.86981068,190.74,190.61,42.54114159]
[1739373148934,5.2425,190.76,190.65,42.54114159]
[1739373149132,5.8284,190.77,190.68,42.54114159]
[1739373149337,42.54114159,190.86,190.68,42.54114159]
[1739373149539,5.241,190.82,190.75,5.2424]
[1739373149739,0.03605594,190.77,190.75,5.2424]
[1739373149942,0.03605594,190.77,190.76,5.2424]
[1739373150637,0.03605594,190.77,190.73,0.03593894]
[1739373150841,0.03605594,190.77,190.74,5.2429]
[1739373151142,0.03605594,190.77,190.73,0.03593894]
[1739373153538,0.03605594,190.77,190.62,42.54114159]
[1739373153739,42.57719753,190.77,190.62,42.54114159]
[1739373153941,42.54114159,190.74,190.65,5.2452]
[1739373154148,42.54114159,190.74,190.56,42.54114159]
[1739373154444,42.54114159,190.71,190.56,42.54114159]
[1739373154848,0.0348769,190.67,190.63,0.03654832]
[1739373155749,5.2457,190.65,190.63,0.03654832]
[1739373155943,0.0348769,190.67,190.63,0.03654832]
[1739373156941,0.0348769,190.67,190.64,5.2455]
[1739373157246,0.0348769,190.67,190.63,0.03654832]
[1739373158847,0.0348769,190.67,190.66,5.2452]
[1739373159348,0.0348769,190.67,190.63,0.03654832]
[1739373159548,0.0348769,190.67,190.64,5.2455]
[1739373159744,0.0348769,190.67,190.63,0.03654832]
[1739373160747,5.2797769,190.67,190.63,0.03654832]
[1739373161643,5.2457,190.64,190.63,0.03654832]
[1739373161840,2.9981,190.66,190.53,2.8342]
[1739373162045,2.8579,190.65,190.53,2.8342]
[1739373162749,2.9981,190.66,190.55,42.54114159]
[1739373163243,0.03754002,190.61,190.55,42.54114159]
[1739373163447,0.03754002,190.61,190.53,2.8342]
[1739373163744,0.03754002,190.61,190.55,5.2481]
[1739373163948,2.9981,190.66,190.55,5.2481]
[1739373164244,0.03956661,190.6,190.55,5.2481]
[1739373164446,0.03956661,190.6,190.49,42.54114159]
[1739373164647,0.03956661,190.6,190.58,5.2473]
[1739373164849,2.9981,190.66,190.58,5.2473]
[1739373165049,0.03581575,190.61,190.58,5.2473]
[1739373165249,0.03581575,190.61,190.59,5.2471]
[1739373165550,0.03581575,190.61,190.55,42.54114159]
[1739373165747,0.03581575,190.61,190.59,5.2469]
[1739373166147,0.03581575,190.61,190.52,42.54114159]
[1739373166346,0.03581575,190.61,190.6,5.2468]
[1739373168747,3.0065,190.72,190.59,0.03602992]
[1739373168947,3.0065,190.72,190.59,42.54114159]
[1739373169149,5.244,190.71,190.59,42.54114159]
[1739373169349,3.0065,190.72,190.59,42.54114159]
[1739373169551,3.0065,190.72,190.69,5.2443]
[1739373170054,3.03993509,190.72,190.69,5.27943726]
[1739373171055,3.03993509,190.72,190.69,0.03513726]
[1739373171252,3.03993509,190.72,190.59,42.54114159]
[1739373171551,5.2438,190.71,190.66,5.245]
[1739373172051,3.0065,190.72,190.59,42.54114159]
[1739373172453,0.03428481,190.67,190.59,42.54114159]
[1739373173143,0.03428481,190.67,190.56,42.54114159]
[1739373173351,3.0065,190.72,190.56,42.54114159]
[1739373173657,0.04011925,190.63,190.56,42.54114159]
[1739373173851,0.04011925,190.63,190.62,5.2461]
[1739373175251,3.0065,190.72,190.59,42.54114159]
[1739373175850,8.2501,190.72,190.68,5.2444]
[1739373176050,5.8721,190.73,190.62,42.54114159]
[1739373176557,0.03640717,190.69,190.66,0.03498235]
[1739373176855,7.17e-06,190.69,190.68,5.2446]
[1739373179660,57.86981068,190.83,190.68,52.19661292]
[1739373179958,57.86981068,190.83,190.77,26.09830646]
[1739373180159,57.86981068,190.83,190.82,5.2408]
[1739373180457,36.19841068,190.83,190.82,5.2408]
[1739373180654,77.05341821,190.84,190.83,5.2405]
[1739373180855,56.75061387,190.85,190.83,26.09830646]
[1739373181256,56.75061387,190.85,190.84,5.2402]
[1739373181551,56.75061387,190.85,190.81,0.03950142]
[1739373181958,56.78435741,190.85,190.81,0.03950142]
[1739373182155,56.78435741,190.85,190.84,42.40559395]
[1739373182355,10.93125603,190.95,190.84,42.40559395]
[1739373182356,58.04256327,190.95,190.84,42.40559395]
[1739373182555,58.04256327,190.95,190.89,42.40559395]
[1739373182758,58.04256327,190.95,190.91,5.2382]
[1739373183259,58.04256327,190.95,190.92,42.40559395]
[1739373183650,58.07837541,190.95,190.92,42.40559395]
[1739373184359,58.07837541,190.95,190.91,0.0393838]
[1739373184958,0.03581214,190.95,190.94,42.40559395]
[1739373185160,0.03581214,190.95,190.91,42.44497775]
[1739373185361,0.03581214,190.95,190.91,0.0393838]
[1739373186051,0.03581214,190.95,190.91,42.44497775]
[1739373188062,0.03581214,190.95,190.91,0.0393838]
[1739373189361,0.03581214,190.95,190.83,7.14495802]
[1739373189765,42.40559395,190.97,190.83,7.14495802]
[1739373190058,42.40559395,190.94,190.83,7.14495802]
[1739373190258,5.2397,190.86,190.83,7.14495802]
[1739373190660,42.4445257,190.9,190.83,7.14495802]
[1739373190857,3.0348,190.89,190.82,21.0412958]
[1739373191160,5.2405,190.83,190.82,21.0412958]
[1739373191357,5.2405,190.83,190.73,70.55166836]
[1739373191553,3.0348,190.89,190.73,70.55166836]
[1739373192163,5.2411,190.81,190.79,0.03560874]
[1739373192664,0.03320113,190.83,190.79,0.03560874]
[1739373192860,5.2408,190.82,190.79,0.03560874]
[1739373193058,0.03320113,190.83,190.79,0.03560874]
[1739373193259,0.03320113,190.83,190.79,42.44120269]
[1739373193562,0.03320113,190.83,190.79,47.68280269]
[1739373193763,0.03320113,190.83,190.79,42.44120269]
[1739373193963,0.03320113,190.83,190.81,5.2408]
[1739373194264,3.0033,190.92,190.82,42.40559395]
[1739373194659,42.40559395,191.05,190.88,42.40559395]
[1739373194860,42.40559395,191.02,190.88,42.40559395]
[1739373195764,0.03529736,190.97,190.93,0.03528791]
[1739373197968,0.03529736,190.97,190.95,5.2372]
[1739373198360,0.03529736,190.97,190.94,42.40559395]
[1739373198757,0.03529736,190.97,190.96,5.2369]
[1739373198967,0.03529736,190.97,190.93,0.03528791]
[1739373199170,0.03529736,190.97,190.94,42.40559395]
[1739373199362,3.0673,191.06,190.94,42.40559395]
[1739373199563,3.0673,191.06,190.97,42.40559395]
[1739373199760,42.40559395,191.13,190.99,5.2359]
[1739373200259,42.40559395,191.13,190.97,42.40559395]
[1739373200464,5.2341,191.07,191.0,5.2358]
[1739373200668,0.03779297,191.07,191.03,0.0347164]
[1739373200866,0.03779297,191.07,190.94,42.40559395]
[1739373201063,42.40559395,191.07,190.91,42.40559395]
[1739373201961,42.40559395,191.04,190.88,42.40559395]
[1739373202167,0.04028425,191.01,190.97,0.03515751]
[1739373202367,0.04028425,191.01,190.88,42.40559395]
[1739373202670,5.2367,190.97,190.93,5.2377]
[1739373202969,5.2367,190.97,190.85,42.40559395]
[1739373203671,0.04009552,190.93,190.89,0.03450484]
[1739373203974,0.04009552,190.93,190.92,5.238]
[1739373204175,9.552e-05,190.93,190.92,5.238]
[1739373204671,11.151,191.03,190.98,5.2362]
[1739373205267,5.9158,191.03,190.98,5.2362]
[1739373205575,57.19056936,191.11,190.95,42.40559395]
[1739373205776,2.9267,191.1,190.95,42.40559395]
[1739373205964,0.03675539,191.02,191.01,5.2355]
[1739373206273,5.8626,191.1,191.01,5.2355]
[1739373206571,0.03483422,191.03,191.01,5.2355]
[1739373206765,5.8626,191.1,191.01,5.2355]
[1739373206966,0.03721002,191.04,191.01,5.2355]
[1739373207570,0.03721002,191.04,191.03,5.235]
[1739373207768,0.03721002,191.04,191.0,0.03588981]
[1739373207970,0.03721002,191.04,191.01,5.2354]
[1739373208170,0.03721002,191.04,191.0,0.03588981]
[1739373208974,0.03721002,191.04,191.0,5.27148981]
[1739373209374,0.03721002,191.04,191.0,0.03588981]
[1739373209875,0.03721002,191.04,191.01,42.40559395]
[1739373210178,0.03721002,191.04,191.03,5.235]
[1739373211673,0.03721002,191.04,191.0,0.03588981]
[1739373211867,0.03721002,191.04,191.01,5.2354]
[1739373212484,0.03721002,191.04,191.0,0.03588981]
[1739373215683,0.03721002,191.04,191.01,26.04381311]
[1739373216084,0.03721002,191.04,191.03,5.235]
[1739373216284,3.0045,191.15,191.01,26.04381311]
[1739373216474,3.0045,191.15,191.06,26.04381311]
[1739373216678,3.0045,191.15,191.1,5.2329]
[1739373217377,3.0045,191.15,191.12,5.2323]
[1739373217573,0.03553791,191.14,191.12,5.2323]
[1739373219887,0.03553791,191.14,191.11,5.2677556]
[1739373220287,0.03553791,191.14,191.11,0.0349556]
[1739373220788,0.03553791,191.14,191.11,5.2674556]
[1739373220983,0.03553791,191.14,191.05,42.27620799]
[1739373221286,0.03553791,191.14,191.01,42.27620799]
[1739373221485,5.915,191.17,191.01,42.27620799]
[1739373221885,42.27620799,191.15,190.98,42.27620799]
[1739373222183,5.2328,191.11,191.01,42.27620799]
[1739373222491,0.03870069,191.08,191.05,0.03467205]
[1739373223080,0.03870069,191.08,191.07,5.2339]
[1739373223285,0.03870069,191.08,191.07,47.51010799]
[1739373224284,5.915,191.17,191.14,5.2319]
[1739373224483,5.2287,191.27,191.14,42.27620799]
[1739373224691,3.2279,191.26,191.14,42.27620799]
[1739373225087,8.4567,191.26,191.14,42.27620799]
[1739373225383,3.2279,191.26,191.23,5.2294]
[1739373225786,3.26719479,191.26,191.23,5.2294]
[1739373225990,3.26719479,191.26,191.23,5.26763165]
[1739373226185,0.03929479,191.26,191.24,5.229]
[1739373226690,0.03929479,191.26,191.23,42.31443964]
[1739373227086,0.03929479,191.26,191.25,5.229]
[1739373227484,3.0902,191.35,191.23,42.31443964]
[1739373227685,3.0902,191.35,191.3,5.2274]
[1739373228082,3.0902,191.35,191.28,5.2281]
[1739373228790,0.03910708,191.33,191.3,0.04023746]
[1739373229190,0.03910708,191.33,191.21,0.737]
[1739373229495,6.3755,191.37,191.3,42.27620799]
[1739373230086,0.03766448,191.35,191.27,47.50440799]
[1739373230291,0.03766448,191.35,191.32,0.03998485]
[1739373231694,5.26396448,191.35,191.32,0.03998485]
[1739373232096,0.03766448,191.35,191.27,42.27620799]
[1739373232596,0.03766448,191.35,191.21,42.27620799]
[1739373232898,42.27620799,191.38,191.21,42.27620799]
[1739373233197,45.48580799,191.41,191.25,5.2289]
[1739373233491,3.2096,191.41,191.28,0.03788037]
[1739373233893,0.03573764,191.35,191.27,42.27620799]
[1739373234092,0.03573764,191.35,191.33,0.03673175]
[1739373234396,42.27620799,191.38,191.21,42.27620799]
[1739373234595,42.27620799,191.35,191.18,42.27620799]
[1739373234792,3.208,191.34,191.18,42.27620799]
[1739373235496,42.27620799,191.32,191.18,42.27620799]
[1739373235696,0.03609155,191.28,191.24,0.03329663]
[1739373235897,0.03609155,191.28,191.15,42.27620799]
[1739373236198,42.27620799,191.29,191.15,42.27620799]
[1739373236396,3.0461,191.28,191.15,42.27620799]
[1739373236792,3.0461,191.28,191.18,42.27620799]
[1739373237097,0.03800076,191.23,191.2,0.03943491]
[1739373237498,0.03800076,191.23,191.21,42.27620799]
[1739373237999,0.03800076,191.23,191.22,5.2298]
[1739373239698,0.03800076,191.23,191.2,5.26953491]
[1739373239896,0.03800076,191.23,191.2,0.03943491]
[1739373240494,0.03800076,191.23,191.21,42.27620799]
[1739373240895,0.03800076,191.23,191.22,5.2298]
[1739373241498,9.2994,191.34,191.21,42.27620799]
[1739373241695,9.2994,191.34,191.18,42.27620799]
[1739373241898,42.27620799,191.32,191.15,42.27620799]
[1739373242197,42.27620799,191.32,191.18,5.2307]
[1739373242493,42.27620799,191.32,191.15,42.27620799]
[1739373242693,0.03424176,191.27,191.23,0.03364351]
[1739373243602,0.03424176,191.27,191.11,32.47741293]
[1739373243799,26.03455469,191.27,191.11,26.00031293]
[1739373243997,26.00031293,191.24,191.08,26.00031293]
[1739373244201,6.333,191.23,191.08,26.00031293]
[1739373244398,6.333,191.23,191.05,26.00031293]
[1739373244696,26.00031293,191.18,191.02,26.00031293]
[1739373244904,0.03884506,191.16,191.12,0.03811819]
[1739373245098,26.00031293,191.18,191.02,26.00031293]
[1739373245695,42.31154883,191.17,191.0,42.31154883]
[1739373245994,42.31154883,191.17,190.94,3.1511]
[1739373246194,0.03877522,191.1,191.07,4.029e-05]
[1739373246503,3.1401,191.1,190.97,42.31154883]
[1739373246703,3.1401,191.1,191.0,42.31154883]
[1739373246999,3.1401,191.1,191.04,5.2346]
[1739373247395,3.1401,191.1,191.05,0.03074694]
[1739373247601,0.03942757,191.09,191.06,5.234]
[1739373248002,3.2809,191.16,191.06,42.31154883]
[1739373248198,0.0366538,191.09,191.07,5.2339]
[1739373248506,3.2809,191.16,191.06,42.34229577]
[1739373248705,0.03422142,191.1,191.06,0.03074694]
[1739373248908,3.0218,191.25,191.09,84.62309766]
[1739373249106,3.0218,191.25,191.15,42.31154883]
[1739373249607,8.2508,191.25,191.15,42.31154883]
[1739373249805,3.0218,191.25,191.15,42.31154883]
[1739373250216,0.03616424,191.22,191.18,0.03590588]
[1739373250611,0.03616424,191.22,191.18,42.34745471]
[1739373252016,57.19056936,191.32,191.21,42.31154883]
[1739373252413,9.3295,191.34,191.24,42.31154883]
[1739373253118,14.5562,191.34,191.24,42.31154883]
[1739373253313,0.03942963,191.31,191.27,0.03337409]
[1739373253519,0.03942963,191.31,191.27,42.34492292]
[1739373253911,0.03942963,191.31,191.27,5.26157409]
[1739373254111,0.03942963,191.31,191.27,0.03337409]
[1739373254919,5.2277,191.3,191.27,0.03337409]
[1739373255116,0.03942963,191.31,191.27,0.03337409]
[1739373255322,5.26692963,191.31,191.27,0.03337409]
[1739373255920,0.03942963,191.31,191.27,0.03337409]
[1739373258322,0.03942963,191.31,191.15,42.31154883]
[1739373258516,42.31154883,191.33,191.15,42.31154883]
[1739373258916,9.3295,191.4,191.26,42.31154883]
[1739373259221,9.3295,191.4,191.29,42.31154883]
[1739373259424,3.1367,191.4,191.32,42.31154883]
[1739373259615,0.03840579,191.36,191.33,0.03863719]
[1739373260024,0.03840579,191.36,191.35,5.2262]
[1739373262023,0.03840579,191.36,191.33,0.03863719]
[1739373264121,0.03840579,191.36,191.35,5.2262]
[1739373264516,0.03840579,191.36,191.35,47.53774883]
[1739373264716,6.2344,191.46,191.42,5.2243]
[1739373265718,6.2344,191.46,191.42,5.26335456]
[1739373266024,6.26778509,191.46,191.42,0.03905456]
[1739373266521,5.2236,191.45,191.42,0.03905456]
[1739373266921,5.2236,191.45,191.39,5.2251]
[1739373267123,5.2244,191.42,191.36,5.2259]
[1739373267619,42.31154883,191.45,191.29,42.31154883]
[1739373267818,5.2249,191.41,191.34,5.2263]
[1739373268220,0.03425466,191.39,191.36,0.03337824]
[1739373268524,0.03425466,191.39,191.34,5.2263]
[1739373268525,0.03425466,191.39,191.32,5.2268]
[1739373268827,42.31154883,191.42,191.32,5.2268]
[1739373269326,42.31154883,191.42,191.26,42.31154883]
[1739373269519,5.2257,191.38,191.35,0.03304072]
[1739373269725,0.03876507,191.39,191.26,42.31154883]
[1739373270025,42.31154883,191.42,191.26,42.31154883]
[1739373270420,42.31154883,191.42,191.29,5.2276]
[1739373270623,42.31154883,191.39,191.23,42.31154883]
[1739373270824,0.03433532,191.37,191.23,42.31154883]
[1739373271026,42.31154883,191.42,191.23,42.31154883]
[1739373271216,0.03933128,191.32,191.26,42.31154883]
[1739373271415,42.31154883,191.45,191.29,42.31154883]
[1739373271620,0.03501785,191.31,191.3,5.2276]
[1739373271821,5.2253,191.39,191.29,42.31154883]
[1739373272021,0.03298847,191.32,191.29,42.31154883]
[1739373272218,5.2255,191.38,191.29,42.31154883]
[1739373272422,0.03889243,191.32,191.29,42.31154883]
[1739373272919,6.2344,191.46,191.3,42.31154883]
[1739373273118,6.2344,191.46,191.36,42.31154883]
[1739373273530,3.1767,191.46,191.36,42.31154883]
[1739373273732,3.1767,191.46,191.36,25.9403166]
[1739373274130,0.03618426,191.43,191.4,5.2247]
[1739373275031,0.03618426,191.43,191.39,0.03849434]
[1739373276030,5.2253,191.39,191.34,5.2264]
[1739373276233,25.9403166,191.41,191.27,25.9403166]
[1739373276425,25.9403166,191.41,191.24,25.9403166]
[1739373276933,5.2265,191.34,191.24,25.9403166]
[1739373277127,25.9403166,191.41,191.24,25.9403166]
[1739373277329,25.9403166,191.41,191.26,5.2285]
[1739373277330,5.26674562,191.31,191.26,5.2285]
[1739373277827,0.036733,191.3,191.26,5.2285]
[1739373278635,0.036733,191.3,191.22,5.2296]
[1739373278930,3.365633,191.3,191.22,5.2296]
[1739373279128,3.365633,191.3,191.17,42.21360228]
[1739373279325,5.228,191.29,191.25,5.229]
[1739373279833,5.26529835,191.29,191.25,5.229]
[1739373280635,0.03729835,191.29,191.2,42.21360228]
[1739373280825,5.2285,191.27,191.21,5.2298]
[1739373281030,3.3289,191.3,191.21,5.2298]
[1739373281229,0.03718546,191.26,191.21,5.2298]
[1739373281927,5.2292,191.25,191.19,5.2304]
[1739373282132,5.2292,191.25,191.17,42.21360228]
[1739373282332,0.03718546,191.26,191.17,42.21360228]
[1739373282727,0.03718546,191.26,191.2,42.21360228]
[1739373282935,3.1902,191.33,191.23,42.21360228]
[1739373283232,0.03387855,191.25,191.2,42.21360228]
[1739373283436,3.0205,191.39,191.29,5.2278]
[1739373283734,3.0205,191.39,191.22,3.1412]
[1739373283934,5.227,191.33,191.28,5.2281]
[1739373286735,5.227,191.33,191.29,5.2279]
[1739373286936,5.2265,191.35,191.24,42.21360228]
[1739373287138,0.0377995,191.33,191.24,42.21360228]
[1739373287928,0.0377995,191.33,191.29,5.2279]
[1739373288232,0.0377995,191.33,191.27,42.21360228]
[1739373288427,0.0377995,191.33,191.3,42.21360228]
[1739373288632,6.378,191.42,191.3,42.21360228]
[1739373288832,5.2246,191.41,191.36,5.2258]
[1739373289028,3.144,191.42,191.33,42.21360228]
[1739373289231,3.2712,191.44,191.33,42.21360228]
[1739373289730,92.16116256,191.47,191.36,42.21360228]
[1739373289927,0.03876789,191.4,191.37,0.03293287]
[1739373290132,0.03876789,191.4,191.39,0.03447074]
[1739373290734,3.1537,191.47,191.42,5.2243]
[1739373291130,3.1537,191.47,191.39,0.03447074]
[1739373291535,8.3767,191.47,191.4,5.2248]
[1739373291835,5.223,191.47,191.39,0.03447074]
[1739373292135,0.03799972,191.45,191.39,0.03447074]
[1739373292537,0.03799972,191.45,191.39,5.25957074]
[1739373292931,0.03799972,191.45,191.39,0.03447074]
[1739373293538,5.2249,191.4,191.39,0.03447074]
[1739373294335,5.2246,191.42,191.39,0.03447074]
[1739373294539,0.03799972,191.45,191.39,0.03447074]
[1739373295335,0.03799972,191.45,191.39,42.24807302]
[1739373296137,0.03799972,191.45,191.42,5.2242]
[1739373297240,0.03799972,191.45,191.39,42.24807302]
[1739373297540,5.26169972,191.45,191.39,5.25937074]
[1739373298941,0.03799972,191.45,191.41,5.2244]
[1739373299236,0.03799972,191.45,191.39,0.03447074]
[1739373299438,5.26159972,191.45,191.4,5.2247]
[1739373299638,0.03799972,191.45,191.4,5.2247]
[1739373299839,0.03799972,191.45,191.39,0.03447074]
[1739373300137,0.03799972,191.45,191.41,5.2245]
[1739373300344,0.03799972,191.45,191.39,0.03447074]
[1739373301539,0.03799972,191.45,191.31,0.18755]
[1739373301841,25.9395756,191.4,191.31,0.18755]
[1739373302237,3.1605,191.39,191.31,0.18755]
[1739373302432,5.227,191.33,191.31,0.18755]
[1739373302638,3.0066,191.38,191.31,0.18755]
[1739373302838,0.03852574,191.34,191.31,0.18755]
[1739373303543,5.2273,191.31,191.3,0.03385052]
[1739373303742,5.2273,191.31,191.25,5.2287]
[1739373303945,25.9395756,191.34,191.18,34.05205361]
[1739373304144,5.2285,191.27,191.21,5.2299]
[1739373305038,0.03348066,191.26,191.21,5.2299]
[1739373305542,5.26218066,191.26,191.21,5.2299]
[1739373305944,5.2291,191.25,191.19,5.2305]
[1739373306138,5.2291,191.25,191.15,32.3461756]
[1739373306139,0.03348066,191.26,191.06,7.09957801]
[1739373306334,6.1136,191.27,191.07,7.605]
[1739373306536,0.03968404,191.2,191.07,7.605]
[1739373306844,0.03968404,191.2,191.07,12.325]
[1739373307038,5.27008404,191.2,191.14,5.232]
[1739373307740,0.03968404,191.2,191.16,5.2312]
[1739373308141,0.03968404,191.2,191.07,7.605]
[1739373308544,5.27008404,191.2,191.14,5.2319]
[1739373308738,0.03968404,191.2,191.07,7.605]
[1739373310446,0.03968404,191.2,191.07,33.5445756]
[1739373310642,0.03968404,191.2,191.07,3.0956]
[1739373310948,5.232,191.14,191.08,5.2336]
[1739373311345,0.03625101,191.13,191.08,5.2336]
[1739373311545,5.2326,191.12,191.06,5.2339]
[1739373312042,0.03579789,191.11,191.01,25.9395756]
[1739373312649,0.03579789,191.11,191.06,5.2339]
[1739373312853,0.03579789,191.11,191.01,25.9395756]
[1739373313046,0.03579789,191.11,190.98,33.3813756]
[1739373313447,25.9395756,191.13,190.98,33.3813756]
[1739373313649,0.03556799,191.06,190.98,33.3813756]
[1739373314253,0.03556799,191.06,190.95,25.9395756]
[1739373314451,5.2345,191.05,190.98,5.2363]
[1739373314646,0.03870332,191.02,190.98,5.2363]
[1739373314849,0.03870332,191.02,190.92,25.9395756]
[1739373315448,0.03870332,191.02,190.95,25.9395756]
[1739373316052,0.03870332,191.02,191.0,5.2357]
[1739373317543,0.03870332,191.02,191.01,5.2355]
[1739373317946,0.03870332,191.02,190.92,25.9395756]
[1739373318342,0.03870332,191.02,190.91,7.8954]
[1739373318852,0.03870332,191.02,190.92,25.9395756]
[1739373319247,0.03870332,191.02,190.95,25.9395756]
[1739373319444,0.03870332,191.02,190.98,25.9395756]
[1739373319651,32.5643756,191.19,191.01,25.9395756]
[1739373319950,5.2315,191.16,191.09,5.2331]
[1739373320351,5.2315,191.16,191.1,5.233]
[1739373320849,0.03382317,191.15,191.11,0.03968706]
[1739373321260,0.03382317,191.15,191.11,5.27248706]
[1739373322349,5.26572317,191.15,191.11,5.27248706]
[1739373322750,0.03382317,191.15,190.98,25.9395756]
[1739373322950,3.0092,191.18,191.01,25.9395756]
[1739373323150,3.0092,191.18,191.04,25.9395756]
[1739373323350,3.0092,191.18,190.94,10.4749]
[1739373323351,3.0092,191.18,191.08,25.9395756]
[1739373323651,6.6248,191.19,191.08,25.9395756]
[1739373323858,5.2303,191.21,191.08,25.9395756]
[1739373324048,0.03910451,191.15,191.11,25.9395756]
[1739373324251,3.1748,191.24,191.14,25.9395756]
[1739373324450,3.2968,191.27,191.17,25.9395756]
[1739373325156,5.2284,191.28,191.17,25.9395756]
[1739373325451,0.03531406,191.24,191.2,0.03383766]
[1739373325849,5.2279,191.29,191.21,5.2298]
[1739373326154,0.03559294,191.24,191.21,5.2298]
[1739373328052,0.03559294,191.24,191.22,5.2297]
[1739373328648,0.03559294,191.24,191.23,5.2295]
[1739373329451,25.9395756,191.34,191.23,5.2295]
[1739373329452,25.9395756,191.4,191.23,25.9395756]